{"text_format":"1","workbook":"xlsx","n_sheets":4,"sheets":["Екатеринбург","Тюмень","Новосибирск","Итоговая"],"not_rendered":{"charts":0,"images":0,"macros":1,"external_links":3,"defined_names":1,"comments":0,"pivot_tables":0},"unopened":[],"bounds":{"document_bytes":16777216,"sheet_cells":100000,"rows_first":2000,"rows_last":500,"rows_between":2000,"halvings":0,"cell_chars":16384,"cell_head_chars":4096},"cells_cut":0,"cells_raw":0,"read":"whole","date_system":"1900"}

{"sheet":"Екатеринбург","index":0,"n_rows":9,"n_cols":7,"rows_kept":9,"cut":false,"hidden":true,"merged":[]}
["дата","Номенклатура","Группа","Кол-во","Цена","Стоимость","Вес"]
[1,"Водка \"ФИШ (FISH)\" 0,5л  УРЖУМ",{"$f":"VLOOKUP(B2,[1]спр_номенкл!$B$3:$C$62,2,0)","v":"Портфельные"},350,310,{"$f":"D2*E2","v":108500},59]
[2,"Водка \"ФИШ\" 0,5 л (УРЖУМ)",{"$f":"VLOOKUP(B3,[1]спр_номенкл!$B$3:$C$62,2,0)","v":"Портфельные"},11,10,{"$f":"D3*E3","v":110},10]
[3,"Водка \"ФИШ\" 0,5 л (УРЖУМ)",{"$f":"VLOOKUP(B4,[1]спр_номенкл!$B$3:$C$62,2,0)","v":"Портфельные"},33,10,330,87]
[4,"Водка \"ФИШ\" 0,5 л (УРЖУМ)",{"$f":"VLOOKUP(B5,[1]спр_номенкл!$B$3:$C$62,2,0)","v":"Портфельные"},4,10,40,92]
[5,"Водка \"ФИШ (FISH)\" 0,5л  УРЖУМ",{"$f":"VLOOKUP(B6,[1]спр_номенкл!$B$3:$C$62,2,0)","v":"Портфельные"},50,10,{"$f":"D6*E6","v":500},59]
[6,"Водка \"ФИШ\" 0,5 л (УРЖУМ)",{"$f":"VLOOKUP(B7,[1]спр_номенкл!$B$3:$C$62,2,0)","v":"Портфельные"},11,10,{"$f":"D7*E7","v":110},10]
[7,"Водка \"ФИШ\" 0,5 л (УРЖУМ)",{"$f":"VLOOKUP(B8,[1]спр_номенкл!$B$3:$C$62,2,0)","v":"Портфельные"},33,10,330,87]
[8,"Водка \"ФИШ\" 0,5 л (УРЖУМ)",{"$f":"VLOOKUP(B9,[1]спр_номенкл!$B$3:$C$62,2,0)","v":"Портфельные"},4,10,40,92]

{"sheet":"Тюмень","index":1,"n_rows":9,"n_cols":7,"rows_kept":9,"cut":false,"hidden":true,"merged":[]}
["N","Номенклатура","Группа","Кол-во","Цена","Стоимость","Вес"]
[0,"Настойка горькая  \"Казёнка  с ароматом цитрона\" 0,5 л (Ульяновск)","Казенка",44,5,{"$f":"E2*D2","v":220},4]
[1,"Настойка горькая  \"Казёнка  с ароматом цитрона\" 0,5 л (Ульяновск)",{"$f":"VLOOKUP(B3,[2]спр_номенкл!$B$3:$C$62,2,0)","v":"Казенка"},1500,3,{"$f":"E3*D3","v":4500}]
[2,"Настойка горькая  \"Казёнка  с ароматом клубники\" 0,5 л (Ульяновск)",{"$f":"VLOOKUP(B4,[2]спр_номенкл!$B$3:$C$62,2,0)","v":"Казенка"},100,4,400]
[3,"Настойка горькая  \"Казёнка  с ароматом цитрона\" 0,5 л (Татарстан)",{"$f":"VLOOKUP(B5,[2]спр_номенкл!$B$3:$C$62,2,0)","v":"Казенка"},100,5,500]
[4,"Настойка горькая  \"Казёнка  с ароматом ментола\" 0,5 л (Татспиртпром)",{"$f":"VLOOKUP(B6,[2]спр_номенкл!$B$3:$C$62,2,0)","v":"Казенка"},100,6,600]
[5,"Настойка горькая  \"Казёнка  с ароматом клубники\" 0,5 л (Ульяновск)",{"$f":"VLOOKUP(B7,[2]спр_номенкл!$B$3:$C$62,2,0)","v":"Казенка"},100,4,{"$f":"E7*D7","v":400}]
[6,"Настойка горькая  \"Казёнка  с ароматом цитрона\" 0,5 л (Татарстан)",{"$f":"VLOOKUP(B8,[2]спр_номенкл!$B$3:$C$62,2,0)","v":"Казенка"},100,5,500]
[7,"Настойка горькая  \"Казёнка  с ароматом ментола\" 0,5 л (Татспиртпром)",{"$f":"VLOOKUP(B9,[2]спр_номенкл!$B$3:$C$62,2,0)","v":"Казенка"},100,6,600]

{"sheet":"Новосибирск","index":2,"n_rows":9,"n_cols":7,"rows_kept":9,"cut":false,"hidden":true,"merged":[]}
["N","Номенклатура","Группа","Кол-во","Цена","Стоимость","Вес"]
[1,"Водка \"Казёнка  Ржаная\" 0,5 л (Татарстан)",{"$f":"VLOOKUP(B2,[3]спр_номенкл!$B$3:$C$62,2,0)","v":"Казенка"},1,66,{"$f":"E2*D2","v":66},59]
[2,"Водка \"Казёнка\" 0,375л (Белвино)",{"$f":"VLOOKUP(B3,[3]спр_номенкл!$B$3:$C$62,2,0)","v":"Казенка"},1,66,{"$f":"E3*D3","v":66},62]
[3,"Водка \"Казёнка\" 0,25 л PLATINUM (Татарстан)",{"$f":"VLOOKUP(B4,[3]спр_номенкл!$B$3:$C$62,2,0)","v":"Казенка"},1,66,66,28]
[4,"Водка \"Казёнка\" 0,5 л (КБР)",{"$f":"VLOOKUP(B5,[3]спр_номенкл!$B$3:$C$62,2,0)","v":"Казенка"},1,66,66,59]
[5,"Водка \"Казёнка  Ржаная\" 0,5 л (Татарстан)",{"$f":"VLOOKUP(B6,[3]спр_номенкл!$B$3:$C$62,2,0)","v":"Казенка"},1,66,{"$f":"E6*D6","v":66},80]
[6,"Водка \"Казёнка\" 0,375л (Белвино)",{"$f":"VLOOKUP(B7,[3]спр_номенкл!$B$3:$C$62,2,0)","v":"Казенка"},1,66,{"$f":"E7*D7","v":66},30]
[7,"Водка \"Казёнка\" 0,25 л PLATINUM (Татарстан)",{"$f":"VLOOKUP(B8,[3]спр_номенкл!$B$3:$C$62,2,0)","v":"Казенка"},1,66,66,95]
[7,"Водка \"Казёнка\" 0,5 л (КБР)",{"$f":"VLOOKUP(B9,[3]спр_номенкл!$B$3:$C$62,2,0)","v":"Казенка"},1,66,66,28]

{"sheet":"Итоговая","index":3,"n_rows":25,"n_cols":8,"rows_kept":25,"cut":false,"hidden":false,"merged":[]}
["Лист","Номенклатура","Группа","Кол-во","Цена","Стоимость","Вес","дата"]
["Екатеринбург","Водка \"ФИШ (FISH)\" 0,5л  УРЖУМ","Портфельные",350,310,108500,59,1]
["Екатеринбург","Водка \"ФИШ\" 0,5 л (УРЖУМ)","Портфельные",11,10,110,10,2]
["Екатеринбург","Водка \"ФИШ\" 0,5 л (УРЖУМ)","Портфельные",33,10,330,87,3]
["Екатеринбург","Водка \"ФИШ\" 0,5 л (УРЖУМ)","Портфельные",4,10,40,92,4]
["Екатеринбург","Водка \"ФИШ (FISH)\" 0,5л  УРЖУМ","Портфельные",50,10,500,59,5]
["Екатеринбург","Водка \"ФИШ\" 0,5 л (УРЖУМ)","Портфельные",11,10,110,10,6]
["Екатеринбург","Водка \"ФИШ\" 0,5 л (УРЖУМ)","Портфельные",33,10,330,87,7]
["Екатеринбург","Водка \"ФИШ\" 0,5 л (УРЖУМ)","Портфельные",4,10,40,92,8]
["Тюмень","Настойка горькая  \"Казёнка  с ароматом цитрона\" 0,5 л (Ульяновск)","Казенка",44,5,220,4,0]
["Тюмень","Настойка горькая  \"Казёнка  с ароматом цитрона\" 0,5 л (Ульяновск)","Казенка",1500,3,4500,null,1]
["Тюмень","Настойка горькая  \"Казёнка  с ароматом клубники\" 0,5 л (Ульяновск)","Казенка",100,4,400,null,2]
["Тюмень","Настойка горькая  \"Казёнка  с ароматом цитрона\" 0,5 л (Татарстан)","Казенка",100,5,500,null,3]
["Тюмень","Настойка горькая  \"Казёнка  с ароматом ментола\" 0,5 л (Татспиртпром)","Казенка",100,6,600,null,4]
["Тюмень","Настойка горькая  \"Казёнка  с ароматом клубники\" 0,5 л (Ульяновск)","Казенка",100,4,400,null,5]
["Тюмень","Настойка горькая  \"Казёнка  с ароматом цитрона\" 0,5 л (Татарстан)","Казенка",100,5,500,null,6]
["Тюмень","Настойка горькая  \"Казёнка  с ароматом ментола\" 0,5 л (Татспиртпром)","Казенка",100,6,600,null,7]
["Новосибирск","Водка \"Казёнка  Ржаная\" 0,5 л (Татарстан)","Казенка",1,66,66,59,1]
["Новосибирск","Водка \"Казёнка\" 0,375л (Белвино)","Казенка",1,66,66,62,2]
["Новосибирск","Водка \"Казёнка\" 0,25 л PLATINUM (Татарстан)","Казенка",1,66,66,28,3]
["Новосибирск","Водка \"Казёнка\" 0,5 л (КБР)","Казенка",1,66,66,59,4]
["Новосибирск","Водка \"Казёнка  Ржаная\" 0,5 л (Татарстан)","Казенка",1,66,66,80,5]
["Новосибирск","Водка \"Казёнка\" 0,375л (Белвино)","Казенка",1,66,66,30,6]
["Новосибирск","Водка \"Казёнка\" 0,25 л PLATINUM (Татарстан)","Казенка",1,66,66,95,7]
["Новосибирск","Водка \"Казёнка\" 0,5 л (КБР)","Казенка",1,66,66,28,7]